bitfinex-derivatives/quotes_BTCF0:USTF0_20250704
["timestamp","ask_amount","ask_price","bid_price","bid_amount"]
[1751634976181,1.85530804,108690.0,108680.0,0.89973309]
[1751634976383,2.17537773,108690.0,108680.0,0.89973309]
[1751634976983,1.85530804,108690.0,108680.0,0.89973309]
[1751634977181,2.17537773,108690.0,108680.0,0.89973309]
[1751634978182,2.17537773,108690.0,108680.0,0.5796634]
[1751634978377,2.14947609,108690.0,108680.0,0.89973309]
[1751634979882,2.14947609,108690.0,108680.0,0.5796634]
[1751634980081,2.14947609,108690.0,108680.0,0.89973309]
[1751634980383,2.14947609,108690.0,108680.0,0.5796634]
[1751634980574,2.14947609,108690.0,108680.0,0.89973309]
[1751634981283,2.14947609,108690.0,108680.0,0.5796634]
[1751634981484,2.14947609,108690.0,108680.0,0.89973309]
[1751634982785,1.8294064,108690.0,108680.0,0.89973309]
[1751634983086,2.14947609,108690.0,108680.0,0.89973309]
[1751634983283,2.14947609,108690.0,108680.0,0.5796634]
[1751634983484,2.14947609,108690.0,108680.0,0.89973309]
[1751634983782,2.17511809,108690.0,108680.0,0.89973309]
[1751634984786,2.17511809,108690.0,108680.0,0.5796634]
[1751634984984,2.17511809,108690.0,108680.0,0.89973309]
[1751634985180,2.17511809,108690.0,108680.0,0.5796634]
[1751634985386,2.17511809,108690.0,108680.0,0.89973309]
[1751634987284,2.17511809,108690.0,108680.0,0.5796634]
[1751634987489,2.17511809,108690.0,108680.0,0.89973309]
[1751634989793,1.8550484,108690.0,108680.0,0.89973309]
[1751634989992,2.17511809,108690.0,108680.0,0.89973309]
[1751634990188,2.17511809,108690.0,108680.0,0.5796634]
[1751634990394,2.17511809,108690.0,108680.0,0.4859639]
[1751634990693,2.20661809,108690.0,108680.0,0.4859639]
[1751634991400,2.20661809,108690.0,108680.0,0.80603359]
[1751634992404,2.20661809,108690.0,108680.0,0.4859639]
[1751634992595,2.20661809,108690.0,108680.0,0.80603359]
[1751634992794,2.20661809,108690.0,108680.0,0.4859639]
[1751634992996,2.20661809,108690.0,108680.0,0.80603359]
[1751634993489,1.8865484,108690.0,108680.0,0.4859639]
[1751634993694,2.20661809,108690.0,108680.0,0.4859639]
[1751634994403,1.8865484,108690.0,108680.0,0.4859639]
[1751634994699,2.20661809,108690.0,108680.0,0.4859639]
[1751634995304,1.8865484,108690.0,108680.0,0.4859639]
[1751634995905,2.14947609,108690.0,108680.0,0.86873359]
[1751634996203,1.82119128,108690.0,108680.0,0.90033359]
[1751634996392,1.82119128,108690.0,108680.0,0.8902639]
[1751634996595,2.14126097,108690.0,108680.0,1.21033359]
[1751634997092,1.82119128,108690.0,108680.0,1.53040328]
[1751634997296,0.38944488,108690.0,108680.0,1.85047297]
[1751634997501,0.37975933,108710.0,108700.0,0.18393]
[1751634997502,0.0308,108710.0,108700.0,0.18393]
[1751634997705,2.32665155,108720.0,108710.0,0.1839131]
[1751634998005,2.32665155,108720.0,108710.0,1.23398279]
[1751634998006,2.79349584,108720.0,108710.0,1.23398279]
[1751634998201,0.02564908,108720.0,108710.0,1.29588279]
[1751634998404,0.91072559,108730.0,108720.0,0.1838962]
[1751634998606,2.14552559,108730.0,108720.0,0.87586589]
[1751634998804,2.17842559,108730.0,108720.0,0.8932861]
[1751634999305,2.17822559,108730.0,108720.0,0.8932861]
[1751634999504,2.18122559,108730.0,108720.0,0.8932861]
[1751634999806,1.8611559,108730.0,108720.0,0.57321641]
[1751635000203,1.8936559,108730.0,108720.0,0.57321641]
[1751635000614,2.21353815,108730.0,108720.0,0.57321641]
[1751635001412,2.21153815,108730.0,108720.0,0.57421641]
[1751635001602,2.21453815,108730.0,108720.0,0.57521641]
[1751635002707,1.35985815,108730.0,108720.0,0.57521641]
[1751635002903,2.21401815,108730.0,108720.0,0.57521641]
[1751635003302,2.21401815,108730.0,108720.0,0.54411641]
[1751635006407,1.8942159,108730.0,108720.0,0.54411641]
[1751635006607,2.21401815,108730.0,108720.0,0.54411641]
[1751635007208,1.8942159,108730.0,108720.0,0.54411641]
[1751635007408,2.21401815,108730.0,108720.0,0.54411641]
[1751635013607,1.8942159,108730.0,108720.0,0.54411641]
[1751635013808,2.21401815,108730.0,108720.0,0.54411641]
[1751635016209,1.8942159,108730.0,108720.0,0.54411641]
[1751635018611,2.21401815,108730.0,108720.0,0.54411641]
[1751635021522,2.21401815,108730.0,108720.0,0.51331641]
[1751635021822,2.21406651,108730.0,108720.0,0.51331641]
[1751635022823,2.53391712,108730.0,108720.0,0.32942021]
[1751635023724,2.21406651,108730.0,108720.0,0.32942021]
[1751635027023,2.53391712,108730.0,108720.0,0.32942021]
[1751635027226,2.55838897,108730.0,108720.0,0.32942021]
[1751635027929,1.91868775,108730.0,108720.0,0.32942021]
[1751635028230,2.55838897,108730.0,108720.0,0.32942021]
[1751635029724,2.87823958,108730.0,108720.0,0.01942021]
[1751635029923,0.2298971,108710.0,108700.0,0.07320659]
[1751635030125,2.21571251,108710.0,108700.0,0.4839316]
[1751635030434,2.32269491,108710.0,108700.0,0.4839316]
[1751635031130,2.34317831,108710.0,108700.0,0.4849316]
[1751635031833,2.34329598,108710.0,108700.0,0.4849316]
[1751635033831,1.7383101,108710.0,108700.0,0.4849316]
[1751635034032,2.24220998,108710.0,108700.0,0.4849316]
[1751635034736,2.24320998,108710.0,108700.0,0.4849316]
[1751635035537,1.9232417,108710.0,108700.0,0.4849316]
[1751635035732,2.24320998,108710.0,108700.0,0.4849316]
[1751635038638,2.24320998,108710.0,108700.0,0.5159316]
[1751635039338,1.57673048,108710.0,108700.0,0.5159316]
[1751635039538,0.2513974,108710.0,108700.0,1.18589988]
[1751635039739,1.057815,108710.0,108700.0,1.25879988]
[1751635039937,1.0383316,108710.0,108700.0,1.56879988]
[1751635040338,0.1859316,108710.0,108700.0,1.56879988]
[1751635040638,1.0383316,108710.0,108700.0,1.56879988]
[1751635041836,0.1859316,108710.0,108700.0,1.56879988]
[1751635042040,1.0383316,108710.0,108700.0,1.56879988]
[1751635044943,1.0383316,108710.0,108700.0,1.2488316]
[1751635045144,1.0383316,108710.0,108700.0,1.56879988]
[1751635048346,1.0383316,108710.0,108700.0,1.64200647]
[1751635048545,1.0383316,108710.0,108700.0,1.56879988]
[1751635052250,1.0383316,108710.0,108700.0,1.2488316]
[1751635052446,1.0383316,108710.0,108700.0,1.56879988]
[1751635052949,1.0383316,108710.0,108700.0,1.64200647]
[1751635053751,1.0383316,108710.0,108700.0,1.56879988]
[1751635053953,1.0383316,108710.0,108700.0,0.9388316]
[1751635054252,1.35829988,108710.0,108700.0,0.5780316]
[1751635055252,1.0383316,108710.0,108700.0,0.5780316]
[1751635055454,1.35829988,108710.0,108700.0,0.5780316]
[1751635056252,1.38999988,108710.0,108700.0,0.5780316]
[1751635059357,1.41431539,108710.0,108700.0,0.5780316]
[1751635061350,1.09434711,108710.0,108700.0,0.5780316]
[1751635065158,1.0700316,108710.0,108700.0,0.65123819]
[1751635065759,1.0700316,108710.0,108700.0,0.97116384]
[1751635065760,1.38995725,108710.0,108700.0,0.97116384]
[1751635067960,1.42075725,108710.0,108700.0,0.97116384]
[1751635069752,1.44509595,108710.0,108700.0,0.80485725]
[1751635069954,1.47829595,108710.0,108700.0,0.80485725]
[1751635076158,1.47829595,108710.0,108700.0,0.86815725]
[1751635079863,1.47829595,108710.0,108700.0,0.301]
[1751635080062,2.5290216,108710.0,108700.0,0.4849316]
[1751635080361,2.20909595,108710.0,108700.0,0.4849316]
[1751635081271,2.17909595,108710.0,108700.0,0.4849316]
[1751635083364,1.5191703,108710.0,108700.0,0.4849316]
[1751635083566,2.19909595,108710.0,108700.0,0.4849316]
[1751635084161,2.16909595,108710.0,108700.0,0.4849316]
[1751635084364,2.19909595,108710.0,108700.0,0.4849316]
[1751635086167,1.0694316,108710.0,108700.0,1.4855829]
[1751635086360,1.06209632,108710.0,108700.0,1.26375725]
[1751635087066,1.06209632,108710.0,108700.0,1.5836829]
[1751635087769,1.06209632,108710.0,108700.0,1.62372485]
[1751635087770,1.0377316,108710.0,108700.0,1.62372485]
[1751635088370,1.0377316,108710.0,108700.0,1.3038316]
[1751635088668,1.0377316,108710.0,108700.0,1.62372485]
[1751635089269,1.06209683,108710.0,108700.0,1.62372485]
[1751635093873,1.06209683,108710.0,108700.0,0.90292485]
[1751635094172,1.06209683,108710.0,108700.0,0.5830316]
[1751635094364,1.06209683,108710.0,108700.0,0.90292485]
[1751635095176,1.06209683,108710.0,108700.0,0.5830316]
[1751635095377,1.09419683,108710.0,108700.0,0.5830316]
[1751635097776,1.41409008,108710.0,108700.0,0.5830316]
[1751635098877,1.09419683,108710.0,108700.0,0.5830316]
[1751635099176,1.06189683,108710.0,108700.0,0.90292485]
[1751635099579,1.0375316,108710.0,108700.0,0.97613144]
[1751635100277,1.0375316,108710.0,108700.0,1.24292485]
[1751635100975,1.0375316,108710.0,108700.0,0.9230316]
[1751635101175,1.0375316,108710.0,108700.0,1.31613144]
[1751635102881,1.0375316,108710.0,108700.0,0.97613144]
[1751635103083,1.06185862,108710.0,108700.0,0.90292485]
[1751635103486,1.06185862,108710.0,108700.0,0.5830316]
[1751635106287,1.71822485,108710.0,108700.0,0.4849316]
[1751635106482,1.83675288,108710.0,108700.0,0.4849316]
[1751635106685,2.21675288,108710.0,108700.0,0.4849316]
[1751635107295,2.18675288,108710.0,108700.0,0.4849316]
[1751635112391,2.20675288,108710.0,108700.0,0.4849316]
[1751635113388,1.83675288,108710.0,108700.0,0.4849316]
[1751635113591,2.15675288,108710.0,108700.0,0.4849316]
[1751635117796,2.15686196,108710.0,108700.0,0.4849316]
[1751635118299,2.49613551,108710.0,108700.0,0.301]
[1751635120798,0.1839316,108700.0,108690.0,0.497578]
[1751635120989,1.62436429,108700.0,108690.0,0.297578]
[1751635121190,1.6336785,108700.0,108690.0,0.297578]
[1751635121795,1.31375753,108700.0,108690.0,0.297578]
[1751635123398,1.31475753,108700.0,108690.0,0.297578]
[1751635123698,1.38965989,108700.0,108690.0,0.297578]
[1751635124197,1.0695762,108700.0,108690.0,0.297578]
[1751635124397,1.38965989,108700.0,108690.0,0.297578]
[1751635124597,1.38034568,108700.0,108690.0,0.297578]
[1751635125097,1.38034568,108700.0,108690.0,0.4815265]
[1751635126001,1.38034568,108700.0,108690.0,0.297578]
[1751635126196,1.38134568,108700.0,108690.0,0.297578]
[1751635126898,1.06126199,108700.0,108690.0,0.297578]
[1751635127098,1.38134568,108700.0,108690.0,0.4815265]
[1751635127392,1.38129734,108700.0,108690.0,0.297578]
[1751635127600,1.35701765,108700.0,108690.0,0.297578]
[1751635128698,1.35701765,108700.0,108690.0,0.4815265]
[1751635131098,0.71693396,108700.0,108690.0,0.4815265]
[1751635131303,1.35701765,108700.0,108690.0,0.4815265]
[1751635131901,1.71781765,108700.0,108690.0,0.4815265]
[1751635133402,1.71781765,108700.0,108690.0,0.297578]
[1751635133805,1.6772671,108700.0,108690.0,0.297578]
[1751635133994,1.7422671,108700.0,108690.0,0.297578]
[1751635139608,1.7422671,108700.0,108690.0,0.4815265]
[1751635140309,1.7422671,108700.0,108690.0,0.297578]
[1751635140808,1.74227567,108700.0,108690.0,0.4815265]
[1751635141307,1.78227567,108700.0,108690.0,0.4815265]
[1751635141500,1.75227567,108700.0,108690.0,0.4815265]
[1751635141699,1.75227567,108700.0,108690.0,0.5124265]
[1751635142200,1.75227567,108700.0,108690.0,0.328478]
[1751635143412,1.75227567,108700.0,108690.0,0.5124265]
[1751635143910,2.07232402,108700.0,108690.0,0.5124265]
[1751635144112,2.07232402,108700.0,108690.0,0.328478]
[1751635144910,2.07232402,108700.0,108690.0,0.5124266]
[1751635145117,2.07232402,108700.0,108690.0,0.5430266]
[1751635146111,1.43219198,108700.0,108690.0,0.5430266]
[1751635146413,2.07232402,108700.0,108690.0,0.5430266]
[1751635147407,2.07232402,108700.0,108690.0,0.359078]
[1751635147613,2.07232402,108700.0,108690.0,0.5430266]
[1751635149915,2.07232402,108700.0,108690.0,0.359078]
[1751635151913,2.07232402,108700.0,108690.0,0.297578]
[1751635153512,2.07232402,108700.0,108690.0,0.28]
[1751635156316,1.752258,108700.0,108690.0,0.28]
[1751635156522,1.43219198,108700.0,108690.0,0.28]
[1751635156721,2.07232402,108700.0,108690.0,0.3423]
[1751635158222,2.04042402,108700.0,108690.0,0.3423]
[1751635165329,2.04042402,108700.0,108690.0,0.373]
[1751635166331,1.326758,108700.0,108690.0,0.87701452]
[1751635166639,0.87685802,108700.0,108690.0,1.23781452]
[1751635166835,0.002,108700.0,108690.0,1.55781452]
[1751635167028,0.8526,108700.0,108690.0,1.55781452]
[1751635167530,1.0365316,108700.0,108690.0,1.55781452]
[1751635167936,0.8526,108700.0,108690.0,1.63102111]
[1751635168136,0.8526,108700.0,108690.0,1.95108713]
[1751635168338,0.8526,108700.0,108690.0,1.63102111]
[1751635169340,0.8526,108700.0,108690.0,2.13102111]
[1751635170642,0.002,108700.0,108690.0,2.13102111]
[1751635170847,0.85248,108700.0,108690.0,2.13102111]
[1751635172436,0.85248,108700.0,108690.0,2.63508713]
[1751635172636,0.1839287,108710.0,108700.0,0.1839316]
[1751635172841,0.1839287,108710.0,108700.0,1.90644692]
[1751635173040,1.0343287,108710.0,108700.0,1.90644692]
[1751635174045,1.0373287,108710.0,108700.0,1.90644692]
[1751635174346,1.0383287,108710.0,108700.0,1.90744692]
[1751635174849,0.1879287,108710.0,108700.0,1.90744692]
[1751635175050,0.8544,108710.0,108700.0,1.90744692]
[1751635176444,1.0383147,108710.0,108700.0,1.90744692]
[1751635176644,0.004,108710.0,108700.0,1.90744692]
[1751635176849,0.85436,108710.0,108700.0,1.98065351]
[1751635177147,0.2758668,108720.0,108710.0,0.1839147]
[1751635177449,1.1302093,108720.0,108710.0,1.62178072]
[1751635177643,1.0802093,108720.0,108710.0,1.62178072]
[1751635178351,1.0822093,108720.0,108710.0,1.24178072]
[1751635179656,1.0852093,108720.0,108710.0,1.24278072]
[1751635180152,1.0830893,108720.0,108710.0,1.24278072]
[1751635180348,1.0810893,108720.0,108710.0,1.24278072]
[1751635180553,1.0820893,108720.0,108710.0,1.24378072]
[1751635181053,1.0820893,108720.0,108710.0,1.25296357]
[1751635181854,1.0820893,108720.0,108710.0,1.25273091]
[1751635190456,1.0820893,108720.0,108710.0,1.26996923]
[1751635193860,1.0820893,108720.0,108710.0,1.25273091]
[1751635194062,1.1147893,108720.0,108710.0,1.25273091]
[1751635195163,1.1147893,108720.0,108710.0,0.95058758]
[1751635195563,1.1458893,108720.0,108710.0,0.95058758]
[1751635197264,1.1458893,108720.0,108710.0,0.91818758]
[1751635197465,1.81572266,108720.0,108710.0,0.48360473]
[1751635197665,1.86852266,108720.0,108710.0,0.48360473]
[1751635198265,2.22932266,108720.0,108710.0,0.48360473]
[1751635200265,2.25273406,108720.0,108710.0,0.48360473]
[1751635200467,2.22932266,108720.0,108710.0,0.48360473]
[1751635201369,2.22932266,108720.0,108710.0,0.55681132]
[1751635201865,2.22932266,108720.0,108710.0,0.48360473]
[1751635202561,2.25274271,108720.0,108710.0,0.48360473]
[1751635203769,2.57278373,108720.0,108710.0,0.48360473]
[1751635204564,2.52278373,108720.0,108710.0,0.48360473]
[1751635205366,1.35258373,108720.0,108710.0,0.48360473]
[1751635205564,1.88228654,108720.0,108710.0,0.80354192]
[1751635205961,1.88228654,108720.0,108710.0,0.48360473]
[1751635206165,1.88228654,108720.0,108710.0,0.80354192]
[1751635207167,1.56234935,108720.0,108710.0,0.80354192]
[1751635207369,1.88228654,108720.0,108710.0,0.86774192]
[1751635208471,1.85886649,108720.0,108710.0,0.86774192]
[1751635209570,1.88227845,108720.0,108710.0,0.86774192]
[1751635212671,1.88227845,108720.0,108710.0,0.54780473]
[1751635212866,1.88227845,108720.0,108710.0,0.86774192]
[1751635212867,2.20221564,108720.0,108710.0,0.86774192]
[1751635213072,2.20221564,108720.0,108710.0,0.48360473]
[1751635214169,2.20221564,108720.0,108710.0,0.80354192]
[1751635216278,1.56234126,108720.0,108710.0,0.80354192]
[1751635216475,1.88227845,108720.0,108710.0,0.80354192]
[1751635219276,1.49806649,108720.0,108710.0,0.80354192]
[1751635219479,1.85886649,108720.0,108710.0,0.80354192]
[1751635220378,2.17880368,108720.0,108710.0,0.80354192]
[1751635220781,2.55880368,108720.0,108710.0,0.80354192]
[1751635221080,2.55880368,108720.0,108710.0,0.29969003]
[1751635221284,2.55880368,108720.0,108710.0,0.48360483]
[1751635221476,2.55880368,108720.0,108710.0,0.29969003]
[1751635222182,2.55880368,108720.0,108710.0,0.48360483]
[1751635223373,0.6892893,108720.0,108710.0,0.80354202]
[1751635223579,1.49774649,108720.0,108710.0,0.80354202]
[1751635223778,1.52114855,108720.0,108710.0,0.86894202]
[1751635224778,1.88194855,108720.0,108710.0,0.86894202]
[1751635225379,1.84914855,108720.0,108710.0,0.86894202]
[1751635225879,1.52921136,108720.0,108710.0,0.54900483]
[1751635228982,1.84909247,108720.0,108710.0,0.54900483]
[1751635229382,1.52921136,108720.0,108710.0,0.54900483]
[1751635230181,1.5058093,108720.0,108710.0,0.54900483]
[1751635230383,1.8458093,108720.0,108710.0,0.54900483]
[1751635230583,1.8762093,108720.0,108710.0,0.54900483]
[1751635231384,1.8762093,108720.0,108710.0,0.51650523]
[1751635231684,1.89961929,108720.0,108710.0,0.48360523]
[1751635232485,1.89961929,108720.0,108710.0,0.4659152]
[1751635232984,2.2195004,108720.0,108710.0,0.4659152]
[1751635236991,1.89961929,108720.0,108710.0,0.4659152]
[1751635237190,2.2195004,108720.0,108710.0,0.4659152]
[1751635238989,2.2195004,108720.0,108710.0,0.282]
[1751635239191,2.2195004,108720.0,108710.0,0.4659152]
[1751635244196,2.2195004,108720.0,108710.0,0.282]
[1751635244793,2.2195004,108720.0,108710.0,0.002]
[1751635245396,2.2195004,108720.0,108710.0,0.282]
[1751635246394,2.2195004,108720.0,108710.0,0.4659152]
[1751635247797,2.53949333,108720.0,108710.0,0.4659152]
[1751635251594,1.95475631,108720.0,108710.0,0.78585222]
[1751635251795,0.72523631,108720.0,108710.0,0.89780013]
[1751635251996,1.57391631,108720.0,108710.0,0.89780013]
[1751635252703,1.54050632,108720.0,108710.0,0.89780013]
[1751635253700,1.56393717,108720.0,108710.0,0.89780013]
[1751635255604,1.56393717,108720.0,108710.0,0.57786311]
[1751635255801,1.56393717,108720.0,108710.0,0.89780013]
[1751635258404,0.69182632,108720.0,108710.0,0.89780013]
[1751635258704,1.54042632,108720.0,108710.0,0.89780013]
[1751635259000,0.142,108720.0,108710.0,0.89780013]
[1751635259304,0.38037327,108740.0,108730.0,0.183882]
[1751635259305,0.20343837,108740.0,108730.0,0.183882]
[1751635259509,1.37189539,108740.0,108730.0,0.79381902]
[1751635259702,1.05195837,108740.0,108730.0,0.88931902]
[1751635259901,1.37189539,108740.0,108730.0,0.96252561]
[1751635260102,0.52337539,108740.0,108730.0,0.88931902]
[1751635260303,1.37185539,108740.0,108730.0,0.88931902]
[1751635260503,0.52337539,108740.0,108730.0,0.88931902]
[1751635260800,0.20343837,108740.0,108730.0,0.88931902]
[1751635261000,1.05191837,108740.0,108730.0,0.88931902]
[1751635261406,1.05191837,108740.0,108730.0,0.569382]
[1751635261607,1.05191837,108740.0,108730.0,0.88931902]
[1751635261608,1.37185539,108740.0,108730.0,0.88931902]
[1751635261806,1.37185539,108740.0,108730.0,0.569382]
[1751635261807,1.05191837,108740.0,108730.0,0.569382]
[1751635262007,1.05491837,108740.0,108730.0,0.570382]
[1751635262308,1.05691837,108740.0,108730.0,0.571382]
[1751635263101,0.02457327,108740.0,108730.0,0.89113121]
[1751635263404,0.87293327,108740.0,108730.0,1.00553214]
[1751635263600,0.02457327,108740.0,108730.0,0.94113121]
[1751635263908,0.87293327,108740.0,108730.0,0.9643378]
[1751635264108,0.87293327,108740.0,108730.0,1.3043378]
[1751635266406,0.87293327,108740.0,108730.0,1.23113121]
[1751635267712,0.87293327,108740.0,108730.0,1.30300889]
[1751635269210,1.05679837,108740.0,108730.0,1.30300889]
[1751635270011,1.05679837,108740.0,108730.0,1.07300889]
[1751635273816,0.87293327,108740.0,108730.0,1.07300889]
[1751635275316,1.05679837,108740.0,108730.0,1.07300889]
[1751635275520,0.87293327,108740.0,108730.0,1.07300889]
[1751635277216,0.87293327,108740.0,108730.0,1.06300889]
[1751635277415,1.05679847,108740.0,108730.0,1.06300889]
[1751635278118,0.87293327,108740.0,108730.0,1.06300889]
[1751635278818,0.87293327,108740.0,108730.0,0.96300889]
[1751635281818,0.87293327,108740.0,108730.0,0.96296402]
[1751635282416,0.87293327,108740.0,108730.0,0.64325968]
[1751635282717,1.05679837,108740.0,108730.0,0.96296402]
[1751635284019,1.37650271,108740.0,108730.0,0.96296402]
[1751635284223,1.40830271,108740.0,108730.0,0.96296402]
[1751635284415,1.08859837,108740.0,108730.0,0.96296402]
[1751635284615,0.55994271,108740.0,108730.0,0.96296402]
[1751635284917,1.40762271,108740.0,108730.0,0.96296402]
[1751635288924,1.40762271,108740.0,108730.0,0.93146402]
[1751635289221,1.47362271,108740.0,108730.0,0.93146402]
[1751635291023,1.47362271,108740.0,108730.0,1.00467061]
[1751635292324,1.47362271,108740.0,108730.0,0.93146402]
[1751635293520,1.47362271,108740.0,108730.0,0.61175968]
[1751635293726,2.52742398,108740.0,108730.0,0.475882]
[1751635294125,2.52742398,108740.0,108730.0,0.4758821]
[1751635294724,1.8880153,108740.0,108730.0,0.4758821]
[1751635294923,2.52742398,108740.0,108730.0,0.4758821]
[1751635296428,1.8880153,108740.0,108730.0,0.4758821]
[1751635296729,2.52742398,108740.0,108730.0,0.4758821]
[1751635298835,2.52742398,108740.0,108730.0,0.292]
[1751635299134,2.76379478,108740.0,108730.0,0.292]
[1751635300234,2.76379478,108740.0,108730.0,0.032]
[1751635300833,0.183899,108720.0,108710.0,0.3206998]
[1751635301029,2.38150768,108720.0,108710.0,0.20114771]
[1751635301333,2.50470768,108720.0,108710.0,0.80085205]
[1751635301534,1.80500334,108720.0,108710.0,0.80085205]
[1751635301734,1.80520958,108720.0,108710.0,0.48114771]
[1751635302127,1.80620958,108720.0,108710.0,0.48314771]
[1751635302528,1.80720958,108720.0,108710.0,0.48514771]
[1751635303135,1.80620958,108720.0,108710.0,0.48314771]
[1751635303335,1.81020958,108720.0,108710.0,0.48414771]
[1751635303636,1.490299,108720.0,108710.0,0.48414771]
[1751635304332,1.489299,108720.0,108710.0,0.48214771]
[1751635304534,1.492299,108720.0,108710.0,0.48314771]
[1751635305538,1.81220958,108720.0,108710.0,0.48314771]
[1751635306242,2.15220958,108720.0,108710.0,0.48314771]
[1751635307537,2.15220958,108720.0,108710.0,0.29924791]
[1751635307837,1.832299,108720.0,108710.0,0.282]
[1751635308036,2.51300958,108720.0,108710.0,0.282]
[1751635311850,0.1839328,108700.0,108690.0,0.07357329]
[1751635312044,0.1839498,108690.0,108680.0,0.15]
[1751635312239,0.1839667,108680.0,108670.0,0.46513691]
[1751635312441,1.3928867,108680.0,108670.0,0.70586002]
[1751635312739,1.3928867,108680.0,108670.0,0.65986412]
[1751635313141,1.4247867,108680.0,108670.0,0.65986412]
[1751635313337,1.4247867,108680.0,108670.0,0.39133488]
[1751635313940,1.4247867,108680.0,108670.0,0.57531848]
[1751635314140,1.4247867,108680.0,108670.0,0.39133488]
[1751635314352,1.7347867,108680.0,108670.0,0.29753488]
[1751635314643,1.7660867,108680.0,108670.0,0.29753488]
[1751635314849,1.77599728,108680.0,108670.0,0.31113047]
[1751635315048,1.77599728,108680.0,108670.0,0.49511407]
[1751635315246,1.77599728,108680.0,108670.0,0.48151848]
[1751635315446,1.4560867,108680.0,108670.0,0.48151848]
[1751635315642,1.0336467,108680.0,108670.0,1.23449414]
[1751635315848,1.0336467,108680.0,108670.0,0.86442906]
[1751635316351,1.0356467,108680.0,108670.0,0.86442906]
[1751635318163,0.1869667,108680.0,108670.0,0.86442906]
[1751635318464,1.0365267,108680.0,108670.0,0.86442906]
[1751635318763,1.0365267,108680.0,108670.0,0.87350607]
[1751635319566,1.0365267,108680.0,108670.0,0.55359549]
[1751635319762,1.0365267,108680.0,108670.0,0.87350607]
[1751635320865,1.0365267,108680.0,108670.0,0.54451848]
[1751635322167,1.0365267,108680.0,108670.0,0.55377263]
[1751635322358,1.0365267,108680.0,108670.0,0.54451848]
[1751635322762,1.35643728,108680.0,108670.0,0.51301848]
[1751635322964,1.78213728,108680.0,108670.0,0.51301848]
[1751635325062,2.15213728,108680.0,108670.0,0.48151848]
[1751635325262,2.18543728,108680.0,108670.0,0.48151848]
[1751635325571,1.81543728,108680.0,108670.0,0.48151848]
[1751635326165,1.81543728,108680.0,108670.0,0.29753488]
[1751635326367,1.8555267,108680.0,108670.0,0.01753488]
[1751635326564,1.8555267,108680.0,108670.0,0.03119447]
[1751635326760,2.17543728,108680.0,108670.0,0.28517797]
[1751635326956,2.17543728,108680.0,108670.0,0.48517797]
[1751635328168,2.17543728,108680.0,108670.0,0.48518014]
[1751635328469,1.4955267,108680.0,108670.0,0.48518014]
[1751635328667,1.9880067,108680.0,108670.0,0.83649072]
[1751635328864,1.6380067,108680.0,108670.0,0.86789072]
[1751635330969,1.6380067,108680.0,108670.0,0.54798014]
[1751635333369,1.6683067,108680.0,108670.0,0.54798014]
[1751635336774,1.6683067,108680.0,108670.0,0.86789072]
[1751635337076,1.6683067,108680.0,108670.0,0.54798014]
[1751635338369,1.6683067,108680.0,108670.0,0.5304453]
[1751635339876,1.98821728,108680.0,108670.0,0.5304453]
[1751635340179,1.6683067,108680.0,108670.0,0.5304453]
[1751635341571,1.7001067,108680.0,108670.0,0.5304453]
[1751635342478,1.72290561,108680.0,108670.0,0.5304453]
[1751635342980,2.04281619,108680.0,108670.0,0.4990453]
[1751635343181,2.45361619,108680.0,108670.0,0.48202544]
[1751635343773,2.45361619,108680.0,108670.0,0.29804194]
[1751635344480,2.47279483,108680.0,108670.0,0.02804194]
[1751635345469,2.48187052,108680.0,108670.0,0.02804194]
[1751635345676,2.48187052,108680.0,108670.0,0.28804194]
[1751635345874,2.16195994,108680.0,108670.0,0.27438018]
[1751635346078,2.47279483,108680.0,108670.0,0.27438018]
[1751635346986,2.47279483,108680.0,108670.0,0.45836378]
[1751635347285,2.47279483,108680.0,108670.0,0.27438018]
[1751635347680,1.77288425,108680.0,108670.0,0.45836378]
[1751635347981,2.10288425,108680.0,108670.0,0.45836378]
[1751635348184,2.08370561,108680.0,108670.0,0.45836378]
[1751635348487,1.77330315,108680.0,108670.0,0.45836378]
[1751635349384,2.15330315,108680.0,108670.0,0.45836378]
[1751635349588,1.38170315,108680.0,108670.0,0.45836378]
[1751635349783,1.71142315,108680.0,108670.0,0.77827436]
[1751635349978,1.68112315,108680.0,108670.0,0.87167436]
[1751635350379,1.68112315,108680.0,108670.0,0.74729418]
[1751635350581,1.68112315,108680.0,108670.0,0.4273836]
[1751635350892,1.68112315,108680.0,108670.0,0.74729418]
[1751635352082,1.68112315,108680.0,108670.0,0.4273836]
[1751635352886,1.71352315,108680.0,108670.0,0.4273836]
[1751635353075,1.71308315,108680.0,108670.0,0.4273836]
[1751635355086,2.35299373,108680.0,108670.0,0.3969836]
[1751635355287,1.74598315,108680.0,108670.0,0.3661836]
[1751635355482,2.40589373,108680.0,108670.0,0.3661836]
[1751635356587,2.40589373,108680.0,108670.0,0.3339836]
[1751635358298,1.74598315,108680.0,108670.0,0.3339836]
[1751635358495,1.69028424,108680.0,108670.0,0.68569418]
[1751635358695,1.71308306,108680.0,108670.0,0.71619418]
[1751635360394,1.71308306,108680.0,108670.0,0.3962836]
[1751635360888,2.03299364,108680.0,108670.0,0.3962836]
[1751635361096,2.39299364,108680.0,108670.0,0.3962836]
[1751635361396,1.74568306,108680.0,108670.0,0.3962836]
[1751635361691,1.74568306,108680.0,108670.0,0.3339829]
[1751635361692,2.41559364,108680.0,108670.0,0.3339829]
[1751635362792,2.41559364,108680.0,108670.0,0.15]
[1751635363093,0.1839829,108670.0,108660.0,0.3219886]
[1751635363299,0.90849348,108670.0,108660.0,0.58794381]
[1751635363894,0.90849348,108670.0,108660.0,0.35795391]
[1751635364099,1.26929348,108670.0,108660.0,0.54195371]
[1751635364299,1.27029348,108670.0,108660.0,0.54195371]
[1751635364602,1.27229348,108670.0,108660.0,0.52757309]
[1751635364804,1.27229348,108670.0,108660.0,0.54195441]
[1751635365106,1.27229348,108670.0,108660.0,0.28438132]
[1751635366401,1.27229348,108670.0,108660.0,0.46838112]
[1751635366609,0.9523829,108670.0,108660.0,0.46838112]
[1751635366902,1.27229348,108670.0,108660.0,0.4539998]
[1751635370907,0.6423829,108670.0,108660.0,0.4539998]
[1751635371204,0.96229348,108670.0,108660.0,0.4539998]
[1751635371407,1.7327829,108670.0,108660.0,0.53976669]
[1751635372008,2.0427829,108670.0,108660.0,0.53976669]
[1751635372704,0.8896829,108670.0,108660.0,0.53976669]
[1751635373005,1.97036631,108670.0,108660.0,0.83531038]
[1751635373396,1.66036631,108670.0,108660.0,0.83531038]
[1751635373596,1.42268631,108670.0,108660.0,0.83531038]
[1751635377903,1.42268631,108670.0,108660.0,0.89047727]
[1751635380106,1.4001429,108670.0,108660.0,0.83531038]
[1751635380704,1.4001429,108670.0,108660.0,0.90888367]
[1751635380999,1.4001429,108670.0,108660.0,0.58897309]
[1751635381197,1.4001429,108670.0,108660.0,0.90888367]
[1751635381402,1.4001429,108670.0,108660.0,0.58897309]
[1751635382108,1.7701429,108670.0,108660.0,0.58897309]
[1751635382503,1.7701429,108670.0,108660.0,0.90888367]
[1751635382704,1.4001429,108670.0,108660.0,0.90888367]